Workbook

Sheet 원가계산서_인테리어
B1: 공 사 원 가 계 산 서
B2: 공사명 : 부천대학교 혁신지원사업 취업지원 공산 환경개선 건축공사
B3: 비 목 | E3: 금 액 | F3: 구 성 비 | G3: 비 고
A4: A1 | B4: 순 공 사 원 가 | C4: 재 료 비 | D4: 직 접 재 료 비 | F4: 자재비
A5: A2 | D5: 간 접 재 료 비
A6: A3 | D6: 작업설, 부산물(△)
A7: AS | D7: [ 소 계 ] | E7: =TRUNC(E4+E5-E6, 0) -> 0
A8: B1 | C8: 노 무 비 | D8: 직 접 노 무 비 | F8: 인건비(노무비)
A9: B2 | D9: 간 접 노 무 비 | F9: 직접노무비 * 12.5% 이하
A10: BS | D10: [ 소 계 ] | E10: =TRUNC(E8+E9, 0) -> 0
A11: C4 | C11: 경비 | D11: 산 재 보 험 료 | F11: 노무비 * 3.7%
A12: C5 | D12: 고 용 보 험 료 | F12: 노무비 * 1.01%
A13: C6 | D13: 국민 건강 보험료 | F13: 직접노무비 * 3.495%
A14: C7 | D14: 국민 연금 보험료 | F14: 직접노무비 * 4.5%
A15: C9 | D15: 노인장기요양보험료 | F15: 국민건강보험료 * 12.27%
A16: CA | D16: 산업안전보건관리비 | F16: (재료비+직노) * 2.93%_(2천만원 이상 / 5억 미만)
D17: 건설기계대여대금 지급보증액 | F17: 직접공사비*0.1%
A18: CG | D18: 기 타 경 비 | F18: (재료비+노무비) * 7.8% 이하
A19: CG | D19: 환경보전비 | F19: 직접공사비*0.3%
A20: CG | D20: 퇴직공제부금비 | F20: 직접노무비*2.3%
A21: CG | D21: 공사이행보증수수료 | F21: 직접공사비*0.0141%*공기(년)
A22: CS | D22: [ 소 계 ] | E22: =TRUNC(E11+E12+E13+E14+E15+E16+E17+E18+E19+E20+E21, 0) -> 0
A23: S1 | B23: 계 | E23: =TRUNC(E7+E10+E22, 0) -> 0
A24: D1 | B24: 일 반 관 리 비 | F24: 계 * 6.0% 이하
A25: D2 | B25: 이 윤 | F25: (노무비+경비+일반관리비) * 15.0% 이하
A26: D9 | B26: 공 급 가 액 | E26: =TRUNC(E23+E24+E25, -4) -> 0
A27: DB | B27: 부 가 가 치 세 | E27: =TRUNC(E26*0.1, 0) -> 0 | F27: 공급가액 * 10%
A28: DH | B28: 도 급 액 | E28: =TRUNC(E26+E27, 0) -> 0
A29: S2 | B29: 총 공 사 비 | E29: =TRUNC(E28, 0) -> 0

Sheet 총괄 집계표
B2: 집계표
A3: 번호 | B3: 명 칭 | C3: 제조사 | D3: 모델 No. | E3: 규 격 | F3: 단위 | G3: 수 량 | H3: 자재 loss율 | I3: 자 재 비 | K3: 인 건 비 | M3: 합 계 | N3: 비 고
I4: 단 가 | J4: 금액 | K4: 단 가 | L4: 금액
A6: ■ | B6: 총괄 집계표
B7: 직접 공사비
A9: A | B9: ='잡카페 내역서'!B7 -> 잡카페 | F9: LOT | G9: 1 | J9: ='잡카페 내역서'!H34 -> 0 | L9: ='잡카페 내역서'!J34 -> 0 | M9: ='잡카페 내역서'!N34 -> 0
A10: B | B10: ='이미지 메이킹룸'!B7 -> 이미지 메이킹룸 | F10: LOT | G10: 1 | J10: ='이미지 메이킹룸'!H33 -> 0 | L10: ='이미지 메이킹룸'!J33 -> 0 | M10: ='이미지 메이킹룸'!N33 -> 0
B27: 직접공사비 계 | J27: =SUM(J9:J26) -> 0 | L27: =SUM(L9:L26) -> 0 | M27: =SUM(M9:M26) -> 0

Sheet 잡카페 내역서
A2: 내역서
A3: 번호 | B3: 명 칭 | C3: 규 격 | D3: 단위 | E3: 수량 | F3: 자재 loss율 | G3: 자 재 비 | I3: 인 건 비 | K3: 경 비 | M3: 합 계 | O3: 비 고
G4: 단 가 | H4: 금액 | I4: 단 가 | J4: 금액 | K4: 단 가 | L4: 금액 | M4: 단가 | N4: 금액
A5: 취창업처 잡카페
A7: A | B7: 잡카페
A8: =A35 -> 1 | B8: =B35 -> 가설공사 | H8: =H47 -> 0 | J8: =J47 -> 0 | N8: =N47 -> 0
A9: =A49 -> 2 | B9: =B49 -> 경량 및 목공사 | H9: =H61 -> 0 | J9: =J61 -> 0 | N9: =N61 -> 0
A10: =A63 -> 3 | B10: =B63 -> 금속공사 | H10: =H77 -> 0 | J10: =J77 -> 0 | N10: =N77 -> 0
A11: =A79 -> 4 | B11: =B79 -> 유리공사 | H11: =H83 -> 0 | J11: =J83 -> 0 | N11: =N83 -> 0
A12: =A85 -> 5 | B12: =B85 -> 도장공사 | H12: =H92 -> 0 | J12: =J92 -> 0 | N12: =N92 -> 0
A13: =A94 -> 6 | B13: =B94 -> 수장 공사 | H13: =H107 -> 0 | J13: =J107 -> 0 | N13: =N107 -> 0
A14: =A109 -> 7 | B14: =B109 -> 공조 및 냉난방기 이설 공사 | H14: =H118 -> 0 | J14: =J118 -> 0 | N14: =N118 -> 0
A15: =A120 -> 8 | B15: =B120 -> 가구 공사 | H15: =H130 -> 0 | J15: =J130 -> 0 | N15: =N130 -> 0
A16: =A132 -> 9 | B16: =B132 -> 철거 공사 | H16: =H138 -> 0 | J16: =J138 -> 0 | N16: =N138 -> 0
A17: =A140 -> 10 | B17: =B140 -> 사인 공사 및 기타공사 | H17: =H153 -> 0 | J17: =J153 -> 0 | N17: =N153 -> 0
B34: 인테리어공사비 계 | H34: =SUM(H8:H33) -> 0 | J34: =SUM(J8:J33) -> 0 | N34: =SUM(N8:N33) -> 0
A35: 1 | B35: 가설공사
B36: 현장 정리정돈 | D36: M2 | E36: 97.17 | F36: 1 | H36: =E36*F36*G36 -> 0 | J36: =I36*E36 -> 0 | L36: =K36*E36 -> 0 | N36: =SUM(J36,H36) -> 0
B37: 현장 보양 | D37: M2 | E37: =E36 -> 97.17 | F37: 1 | H37: 0 | J37: 0 | L37: =K37*E37 -> 0 | N37: 0
B38: 자재양중 | C38: 현장내 소운반 | D38: M2 | E38: =E37 -> 97.17 | F38: 1 | H38: 0 | J38: 0 | L38: 0 | N38: 0
B39: 기존 집기 이전 | C39: 동일층 집기 이동 | D39: 인 | E39: 2 | F39: 1 | H39: =E39*F39*G39 -> 0 | J39: =I39*E39 -> 0 | L39: 0 | N39: =SUM(J39,H39) -> 0
B40: 먹메김 | D40: M2 | E40: =E36 -> 97.17 | F40: 1 | H40: =E40*F40*G40 -> 0 | J40: =I40*E40 -> 0 | L40: 0 | N40: =SUM(J40,H40) -> 0
B41: 내부수평비계 | D41: M2 | E41: =E40 -> 97.17 | F41: 1 | H41: =E41*F41*G41 -> 0 | J41: =I41*E41 -> 0 | L41: 0 | N41: =SUM(J41,H41) -> 0
B42: 준공청소 | D42: M2 | E42: =E36 -> 97.17 | F42: 1 | H42: 0 | J42: 0 | L42: 0 | N42: 0
B43: 바닥 왁싱 | C43: 캉가루 왁스 | D43: M2 | E43: =E37 -> 97.17 | F43: 1 | H43: =E43*F43*G43 -> 0 | J43: =I43*E43 -> 0 | L43: 0 | N43: =SUM(J43,H43) -> 0
B44: 폐자재 처리 차량 | C44: 1.5TON | D44: 대 | E44: 1 | F44: 1 | H44: 0 | J44: 0 | L44: 0 | N44: 0
B45: 가설설치(도어 포함) | C45: 각재위 합판 도어 | D45: M2 | E45: 53 | F45: 1.1 | H45: 0 | J45: 0 | L45: 0 | N45: 0
B47: 합 계 | H47: =SUM(H36:H46) -> 0 | J47: =SUM(J36:J46) -> 0 | N47: =SUM(N36:N46) -> 0
A49: 2 | B49: 경량 및 목공사
B50: <벽체 공사>
B51: 벽체 구조틀 | D51: M2 | E51: =1.75*2.6+1.1*2.6+3.35*2.6+1.15*2.6 -> 19.11 | F51: 1 | H51: =E51*F51*G51 -> 0 | J51: =I51*E51 -> 0 | L51: =K51*E51 -> 0 | N51: =SUM(J51,H51) -> 0
B52: 석고보드 취부 | C52: 석고보드 9.5T 2ply | D52: M2 | E52: =E51 -> 19.11 | F52: 1 | H52: =E52*F52*G52 -> 0 | J52: =I52*E52 -> 0 | L52: 0 | N52: =SUM(J52,H52) -> 0
B53: 게이트 조성 | C53: 9T MDF + 각재 | D53: M | E53: =2.6*8+10.1+1.62 -> 32.52 | F53: 1 | H53: =E53*F53*G53 -> 0 | J53: =I53*E53 -> 0 | L53: 0 | N53: =SUM(J53,H53) -> 0
B54: 걸레받이 | C54: 각재 + MDF | D54: M | E54: =0.85+0.98+1.1+1.75+0.845+0.87+0.945+0.87+0.87 -> 9.08 | F54: 1 | H54: =E54*F54*G54 -> 0 | J54: =I54*E54 -> 0 | L54: 0 | N54: =SUM(J54,H54) -> 0
B55: 화단 테이블 MDF 취부 | C55: 18T MDF 취부 | D55: M | E55: =7.8 -> 7.8 | F55: 1 | H55: =E55*F55*G55 -> 0 | J55: =I55*E55 -> 0 | L55: 0 | N55: =SUM(J55,H55) -> 0
B56: <천장 공사>
B57: 천장 구조틀 | C57: M-BAR | D57: M2 | E57: =E36 -> 97.17 | F57: 1 | H57: =E57*F57*G57 -> 0 | J57: =I57*E57 -> 0 | L57: =K57*E57 -> 0 | N57: =SUM(J57,H57) -> 0
B58: 합판 + 석고보드 취부 | C58: 석고보드 1PY+ 합판1PY | D58: M2 | E58: =23.5 -> 23.5 | F58: 1 | H58: =E58*F58*G58 -> 0 | J58: =I58*E58 -> 0 | L58: 0 | N58: =SUM(J58,H58) -> 0
B59: 석고보드 취부 | C59: 9T 석고보드 2PY | D59: M2 | E59: =E57-E58 -> 73.67 | F59: 1 | H59: =E59*F59*G59 -> 0 | J59: =I59*E59 -> 0 | L59: 0 | N59: =SUM(J59,H59) -> 0
B61: 합 계 | H61: =SUM(H51:H60) -> 0 | J61: =SUM(J51:J60) -> 0 | N61: =SUM(N51:N60) -> 0
A63: 3 | B63: 금속공사
B64: <벽체 공사>
B65: 유리 후레임 | C65: 30*100 갈바 | D65: M | E65: =1.34 -> 1.34 | F65: 1 | H65: =E65*F65*G65 -> 0 | J65: =I65*E65 -> 0 | L65: =K65*E65 -> 0 | N65: =SUM(J65,H65) -> 0
B66: 화단 파이프 하지 | C66: ㅁ 30*30 각파이프 | D66: M2 | E66: =9*1.1+3.1 -> 13 | F66: 1 | H66: =E66*F66*G66 -> 0 | J66: =I66*E66 -> 0 | L66: 0 | N66: =SUM(J66,H66) -> 0
B67: 화단 갈바 마감 | C67: 1.2T 갈바 | D67: M2 | E67: =E66 -> 13 | F67: 1 | H67: =E67*F67*G67 -> 0 | J67: =I67*E67 -> 0 | L67: 0 | N67: =SUM(J67,H67) -> 0
B68: 화단 테이블 하지작업 | C68: ㅁ 40*40 각파이프 | D68: M | E68: =E55 -> 7.8 | F68: 1 | H68: =E68*F68*G68 -> 0 | J68: =I68*E68 -> 0 | L68: 0 | N68: =SUM(J68,H68) -> 0
B70: <천장 공사>
B71: 레일 보강 | C71: ㅁ 30*30 각파이프 | D71: M | E71: =E72 -> 20.6 | F71: 1 | H71: =E71*F71*G71 -> 0 | J71: =I71*E71 -> 0 | L71: =K71*E71 -> 0 | N71: =SUM(J71,H71) -> 0
B72: 루바 테두리 작업 | C72: 30*100 | D72: M | E72: =20.6 -> 20.6 | F72: 1 | H72: =E72*F72*G72 -> 0 | J72: =I72*E72 -> 0 | L72: 0 | N72: =SUM(J72,H72) -> 0
B73: 알류미늄 루바 | C73: 40*100 분체도장 브라켓 포함 | D73: M | E73: =0.42+0.85+1.25+1.67+2.1+2.5+2.9+3.1+3+2.8+2.4+2.5+2.4+2.3+2.2+2+1.8+1.7+1.2+0.67+3.72*11+1.4*6 -> 89.08 | F73: 1 | H73: =E73*F73*G73 -> 0 | J73: =I73*E73 -> 0 | L73: 0 | N73: =SUM(J73,H73) -> 0
B74: 운반비 | C74: 1.5톤 | D74: 차 | E74: 1 | F74: 1 | H74: =E74*F74*G74 -> 0 | J74: =I74*E74 -> 0 | L74: 0 | N74: =SUM(J74,H74) -> 0
B75: 시공비 | C75: 금속공 | D75: 인 | E75: 2 | F75: 1 | H75: =E75*F75*G75 -> 0 | J75: =I75*E75 -> 0 | L75: 0 | N75: =SUM(J75,H75) -> 0
B77: 합 계 | H77: =SUM(H65:H76) -> 0 | J77: =SUM(J65:J76) -> 0 | N77: =SUM(N65:N76) -> 0
A79: 4 | B79: 유리공사
B80: 복도 픽스 유리 | C80: 12T 강화유리 | D80: 자평 | E80: =5*9 -> 45 | F80: 1 | H80: =E80*F80*G80 -> 0 | J80: =I80*E80 -> 0 | L80: =K80*E80 -> 0 | N80: =SUM(J80,H80) -> 0
B81: 시공 인건비 | C81: 유리공 | D81: 인 | E81: 2 | F81: 1 | H81: =E81*F81*G81 -> 0 | J81: =I81*E81 -> 0 | L81: 0 | N81: =SUM(J81,H81) -> 0
B83: 합 계 | H83: =SUM(H80:H82) -> 0 | J83: =SUM(J80:J82) -> 0 | N83: =SUM(N80:N82) -> 0
A85: 5 | B85: 도장공사
B86: PUTTY | C86: 줄퍼티 2회, 올퍼니 1회 | D86: M2 | E86: =E52+E58+E59 -> 116.28 | F86: 1 | H86: =E86*F86*G86 -> 0 | J86: =I86*E86 -> 0 | L86: =K86*E86 -> 0 | N86: =SUM(J86,H86) -> 0
B87: 벽체 도장 작업 | C87: 지정 수성 도장 | D87: M2 | E87: =E51 -> 19.11 | F87: 1 | H87: =E87*F87*G87 -> 0 | J87: =I87*E87 -> 0 | L87: 0 | N87: =SUM(J87,H87) -> 0
B88: 천정 도장 작업 | C88: 지정 수성 도장 | D88: M2 | E88: =E57 -> 97.17 | F88: 1 | H88: =E88*F88*G88 -> 0 | J88: =I88*E88 -> 0 | L88: 0 | N88: =SUM(J88,H88) -> 0
B89: 유성도장 | C89: 후레임 도장 | D89: M | E89: =1.44*2+2.6*2+1.2*2+2.6*2+7.85*2+2.6*2+1.3*2+2.6*2+8.5*2+2.6*4+0.33*2+2.6*2+1.23*2+2.6*2+1.2*2 -> 87.7 | F89: 1 | H89: =E89*F89*G89 -> 0 | J89: =I89*E89 -> 0 | L89: 0 | N89: =SUM(J89,H89) -> 0
B90: 걸레받이 도장 | D90: M | E90: =E65 -> 1.34 | F90: 1 | H90: =E90*F90*G90 -> 0 | J90: =I90*E90 -> 0 | L90: 0 | N90: =SUM(J90,H90) -> 0
B92: 합 계 | H92: =SUM(H86:H91) -> 0 | J92: =SUM(J86:J91) -> 0 | N92: =SUM(N86:N91) -> 0
A94: 6 | B94: 수장 공사
B95: <바닥 공사>
B96: P-TILE | D96: M2 | E96: =E36 -> 97.17 | F96: 1 | H96: =E96*F96*G96 -> 0 | J96: =I96*E96 -> 0 | L96: =K96*E96 -> 0 | N96: =SUM(J96,H96) -> 0
B97: 재료분리대 | D97: M | E97: 2 | F97: 1 | H97: =E97*F97*G97 -> 0 | J97: =I97*E97 -> 0 | L97: 0 | N97: =SUM(J97,H97) -> 0
B98: 잡자재비 | D98: M2 | E98: =E96 -> 97.17 | F98: 1 | H98: =E98*F98*G98 -> 0 | J98: =I98*E98 -> 0 | L98: 0 | N98: =SUM(J98,H98) -> 0
B100: <필름공사>
B101: 게이트 필름작업 | C101: CW557 | D101: M2 | E101: =0.7*32.5*2 -> 45.5 | F101: 1 | H101: =E101*F101*G101 -> 0 | J101: =I101*E101 -> 0 | L101: =K101*E101 -> 0 | N101: =SUM(J101,H101) -> 0
B102: 파사드 벽체 필름작업 | C102: 지정필름 | D102: M2 | E102: =(0.71+1.1+1.75+0.87+0.845+0.95+0.87)*2.6 -> 18.447 | F102: 1 | H102: =E102*F102*G102 -> 0 | J102: =I102*E102 -> 0 | L102: 0 | N102: =SUM(J102,H102) -> 0
B103: 붙박이 의자 필름 작업 | C103: EL177 | D103: M2 | E103: =0.6*4.4 -> 2.64 | F103: 1 | H103: =E103*F103*G103 -> 0 | J103: =I103*E103 -> 0 | L103: 0 | N103: =SUM(J103,H103) -> 0
B104: 화단 필름 작업 | C104: EL177 | D104: M2 | E104: =1.5*3.2 -> 4.8 | F104: 1 | H104: =E104*F104*G104 -> 0 | J104: =I104*E104 -> 0 | L104: 0 | N104: =SUM(J104,H104) -> 0
B105: 화단 테이블 필름 작업 | C105: CW615 | D105: M2 | E105: =7.2*0.4*2+7.2*0.2 -> 7.2 | F105: 1 | H105: =E105*F105*G105 -> 0 | J105: =I105*E105 -> 0 | L105: 0 | N105: =SUM(J105,H105) -> 0
B107: 합 계 | H107: =SUM(H95:H106) -> 0 | J107: =SUM(J96:J106) -> 0 | N107: =SUM(N96:N106) -> 0
A109: 7 | B109: 공조 및 냉난방기 이설 공사
B110: <공조 공사>
B111: 디퓨져 | C111: Ø 200 원형 | D111: 개소 | E111: 16 | F111: 1 | H111: =E111*F111*G111 -> 0 | J111: =I111*E111 -> 0 | L111: =K111*E111 -> 0 | N111: =SUM(J111,H111) -> 0
B112: 잡자재비 | D112: 식 | E112: 1 | F112: 1 | H112: =E112*F112*G112 -> 0 | J112: =I112*E112 -> 0 | L112: 0 | N112: =SUM(J112,H112) -> 0
B113: 인건비 | C113: 기계설비공 | D113: 인 | E113: 1 | F113: 1 | H113: =E113*F113*G113 -> 0 | J113: =I113*E113 -> 0 | L113: 0 | N113: =SUM(J113,H113) -> 0
B115: <에어컨 이설 공사>
B116: 냉난방기 이설 | D116: 개소 | E116: 3 | F116: 1 | H116: =E116*F116*G116 -> 0 | J116: =I116*E116 -> 0 | L116: =K116*E116 -> 0 | N116: =SUM(J116,H116) -> 0
B118: 합 계 | H118: =SUM(H111:H117) -> 0 | J118: =SUM(J111:J117) -> 0 | N118: =SUM(N111:N117) -> 0
A120: 8 | B120: 가구 공사
B121: 시스루 책장 | C121: 목대 위 도장 | D121: 자 | E121: =3+6+5 -> 14 | F121: 1 | H121: =E121*F121*G121 -> 0 | J121: =I121*E121 -> 0 | L121: =K121*E121 -> 0 | N121: =SUM(J121,H121) -> 0
B122: 모니터 하부장 | C122: 목대 위 도장 인조대리석 | D122: 조 | E122: 1 | F122: 1 | H122: 0 | J122: 0 | L122: 0 | N122: 0
B123: 리플릿장 | C123: 목대 위 도장 | D123: 조 | E123: 1 | F123: 1 | H123: 0 | J123: 0 | L123: 0 | N123: 0
B124: 높은 수납장 | C124: 목대 위 도장 | D124: 조 | E124: 1 | F124: 1 | H124: 0 | J124: 0 | L124: 0 | N124: 0
B125: 붙박이 의자 구조틀_쇼파포함 | C125: 각재 + MDF | D125: M | E125: =3.37 -> 3.37 | F125: 1 | H125: 0 | J125: 0 | L125: 0 | N125: 0
B126: 바테이블 | C126: 무늬목 상판 가림막 포함 | D126: M | E126: 3.2 | F126: 1 | H126: 0 | J126: 0 | L126: 0 | N126: 0
B127: 운반비 | C127: 2.5톤 | D127: 차 | E127: 1 | F127: 1 | H127: 0 | J127: 0 | L127: 0 | N127: 0
B128: 인건비 | C128: 건축목공 | D128: 인 | E128: 4 | F128: 1 | H128: 0 | J128: 0 | L128: 0 | N128: 0
B130: 합 계 | H130: =SUM(H121:H126) -> 0 | J130: =SUM(J121:J126) -> 0 | N130: =SUM(N121:N126) -> 0
A132: 9 | B132: 철거 공사
B133: 천장 전체 철거 | D133: M2 | E133: =E36 -> 97.17 | F133: 1 | H133: =E133*F133*G133 -> 0 | J133: =I133*E133 -> 0 | L133: =K133*E133 -> 0 | N133: =SUM(J133,H133) -> 0
B134: 바닥 전체 철거(데코타일) | D134: M2 | E134: =E133 -> 97.17 | F134: 1 | H134: =E134*F134*G134 -> 0 | J134: =I134*E134 -> 0 | L134: 0 | N134: =SUM(J134,H134) -> 0
B135: 화분, 가구 철거 | D135: M2 | E135: =E38 -> 97.17 | F135: 1 | H135: =E135*F135*G135 -> 0 | J135: =I135*E135 -> 0 | L135: 0 | N135: =SUM(J135,H135) -> 0
B136: 폐기물처리(혼합) | C136: 1 TON | D136: 대 | E136: 1 | F136: 1 | H136: =E136*F136*G136 -> 0 | J136: =I136*E136 -> 0 | L136: 0 | N136: =SUM(J136,H136) -> 0
B138: 합 계 | H138: =SUM(H133:H136) -> 0 | J138: =SUM(J133:J136) -> 0 | N138: =SUM(N133:N136) -> 0
A140: 10 | B140: 사인 공사 및 기타공사
B141: <사인공사>
B142: 파사드 로고 | C142: 아크릴스카시 | D142: 조 | E142: 1 | F142: 1 | H142: =G142*F142*E142 -> 0 | J142: =I142*$E142 -> 0 | L142: =K142*E142 -> 0 | N142: =SUM(J142,H142) -> 0
B143: 파사드 판로고 | C143: 금속 위 도장 포함 | D143: 조 | E143: 1 | F143: 1 | H143: =G143*F143*E143 -> 0 | J143: =I143*$E143 -> 0 | L143: 0 | N143: =SUM(J143,H143) -> 0
B144: 내부 부천대 로고 | C144: 아크릴스카시 | D144: 조 | E144: 1 | F144: 1 | H144: =G144*F144*E144 -> 0 | J144: =I144*$E144 -> 0 | L144: 0 | N144: =SUM(J144,H144) -> 0
B145: 내부 JOB CAFÉ | C145: H:150 JOB CAFÉ | D145: 조 | E145: 1 | F145: 1 | H145: =G145*F145*E145 -> 0 | J145: =I145*$E145 -> 0 | L145: 0 | N145: =SUM(J145,H145) -> 0
B146: 로고 안개시트 | C146: H:600 | D146: M | E146: =7.9+3.2 -> 11.1 | F146: 1 | H146: =G146*F146*E146 -> 0 | J146: =I146*$E146 -> 0 | L146: 0 | N146: =SUM(J146,H146) -> 0
B148: <기타공사>
B149: 프로젝터, 롤스크린 이동설치 | D149: 대 | E149: 1 | F149: 1 | H149: =G149*F149*E149 -> 0 | J149: =I149*$E149 -> 0 | L149: =K149*E149 -> 0 | N149: =SUM(J149,H149) -> 0
B150: 모니터 재설치 | C150: 벽체 이동설치 | D150: 대 | E150: 1 | F150: 1 | H150: =G150*F150*E150 -> 0 | J150: =I150*$E150 -> 0 | L150: 0 | N150: =SUM(J150,H150) -> 0
B151: 스피커, 앰프 이동설치 | C151: 기존 제품 재설치 | D151: 개 | E151: 4 | F151: 1 | H151: =G151*F151*E151 -> 0 | J151: =I151*$E151 -> 0 | L151: 0 | N151: =SUM(J151,H151) -> 0
B153: 합 계 | H153: =SUM(H142:H152) -> 0 | J153: =SUM(J141:J152) -> 0 | N153: =SUM(N140:N152) -> 0

Sheet 이미지 메이킹룸
A2: 내역서
A3: 번호 | B3: 명 칭 | C3: 규 격 | D3: 단위 | E3: 수량 | F3: 자재 loss율 | G3: 자 재 비 | I3: 인 건 비 | K3: 경 비 | M3: 합 계 | O3: 비 고
G4: 단 가 | H4: 금액 | I4: 단 가 | J4: 금액 | K4: 단 가 | L4: 금액 | M4: 단 가 | N4: 금액
A5: 취창업처 이미지 메이킹룸
A7: B | B7: 이미지 메이킹룸
A8: =A34 -> 1 | B8: =B34 -> 가설공사 | H8: =H46 -> 0 | J8: =J46 -> 0 | N8: =N46 -> 0
A9: =A48 -> 2 | B9: =B48 -> 경량 및 목공사 | H9: =H60 -> 0 | J9: =J60 -> 0 | N9: =N60 -> 0
A10: =A62 -> 3 | B10: =B62 -> 금속공사 | H10: =H67 -> 0 | J10: =J67 -> 0 | N10: =N67 -> 0
A11: =A69 -> 4 | B11: =B69 -> 유리공사 | H11: =H75 -> 0 | J11: =J75 -> 0 | N11: =N75 -> 0
A12: =A77 -> 5 | B12: =B77 -> 도장공사 | H12: =H83 -> 0 | J12: =J83 -> 0 | N12: =N83 -> 0
A13: =A85 -> 6 | B13: =B85 -> 수장 공사 | H13: =H91 -> 0 | J13: =J91 -> 0 | N13: =N91 -> 0
A14: =A93 -> 7 | B14: =B93 -> 가구 공사 | H14: =H100 -> 0 | J14: =J100 -> 0 | N14: =N100 -> 0
A15: =A102 -> 8 | B15: =B102 -> 철거 공사 | H15: =H107 -> 0 | J15: =J107 -> 0 | N15: =N107 -> 0
A16: =A109 -> 9 | B16: =B109 -> 사인 공사 | H16: =H113 -> 0 | J16: =J113 -> 0 | N16: =N113 -> 0
B33: 인테리어공사비 계 | H33: =SUM(H8:H32) -> 0 | J33: =SUM(J8:J32) -> 0 | N33: =SUM(N8:N32) -> 0
A34: 1 | B34: 가설공사
B35: 현장 정리정돈 | D35: M2 | E35: 24.3 | F35: 1 | H35: =E35*F35*G35 -> 0 | J35: =I35*E35 -> 0 | L35: =K35*E35 -> 0 | N35: =SUM(J35,H35) -> 0
B36: 현장 보양 | D36: M2 | E36: =E35 -> 24.3 | F36: 1 | H36: 0 | J36: 0 | L36: =K36*E36 -> 0 | N36: 0
B37: 자재양중 | C37: 현장내 소운반 | D37: M2 | E37: =E36 -> 24.3 | F37: 1 | H37: 0 | J37: 0 | L37: 0 | N37: 0
B38: 기존 집기 이전 | C38: 동일층 집기 이동 | D38: 인 | E38: 2 | F38: 1 | H38: 0 | J38: 0 | L38: 0 | N38: 0
B39: 먹메김 | D39: M2 | E39: =E35 -> 24.3 | F39: 1 | H39: =E39*F39*G39 -> 0 | J39: 0 | L39: 0 | N39: 0
B40: 내부수평비계 | D40: M2 | E40: =E39 -> 24.3 | F40: 1 | H40: =E40*F40*G40 -> 0 | J40: 0 | L40: 0 | N40: 0
B41: 준공청소 | D41: M2 | E41: =E35 -> 24.3 | F41: 1 | H41: 0 | J41: 0 | L41: 0 | N41: 0
B42: 바닥 왁싱 | C42: 캉가루 왁스 | D42: M2 | E42: =E36 -> 24.3 | F42: 1 | H42: =E42*F42*G42 -> 0 | J42: =I42*E42 -> 0 | L42: 0 | N42: =SUM(J42,H42) -> 0
B43: 폐자재 처리 차량 | C43: 1.5TON | D43: 대 | E43: 1 | F43: 1 | H43: 0 | J43: 0 | L43: 0 | N43: 0
B44: 가설설치(도어 포함) | C44: 각재위 합판 도어 | D44: M2 | E44: 15 | F44: 1 | H44: =E44*F44*G44 -> 0 | J44: =I44*E44 -> 0 | L44: 0 | N44: =SUM(J44,H44) -> 0
B46: 합 계 | H46: =SUM(H35:H45) -> 0 | J46: =SUM(J35:J45) -> 0 | N46: =SUM(N35:N45) -> 0
A48: 2 | B48: 경량 및 목공사
B49: <벽체 공사>
B50: 벽체 구조틀 | C50: STUD 65THK | D50: M2 | E50: =7.2*2.6+1.7*2.6+0.99*2.6+2.1*2.6 -> 31.174 | F50: 1 | H50: =E50*F50*G50 -> 0 | J50: =I50*E50 -> 0 | L50: =K50*E50 -> 0 | N50: =SUM(J50,H50) -> 0
B51: 석고보드 취부 | C51: 석고보드 9.5T 2ply | D51: M2 | E51: =E50+3.1*2.6 -> 39.234 | F51: 1 | H51: =E51*F51*G51 -> 0 | J51: =I51*E51 -> 0 | L51: 0 | N51: =SUM(J51,H51) -> 0
B52: 벽체 템바보드 | D52: M2 | E52: =1.7*2.6+0.2*2.6*2+0.85*2.6 -> 7.67 | F52: 1 | H52: =E52*F52*G52 -> 0 | J52: =I52*E52 -> 0 | L52: 0 | N52: =SUM(J52,H52) -> 0
B53: 걸레받이 | C53: 각재 + MDF | D53: M | E53: =7.2+1.62+0.99+2.15 -> 11.96 | F53: 1 | H53: =E53*F53*G53 -> 0 | J53: =I53*E53 -> 0 | L53: 0 | N53: =SUM(J53,H53) -> 0
B54: <천장 공사>
B55: 천장 일부보수 | C55: 텍스 | D55: 식 | E55: 1 | F55: 1 | H55: =E55*F55*G55 -> 0 | J55: =I55*E55 -> 0 | L55: =K55*E55 -> 0 | N55: =SUM(J55,H55) -> 0
B56: <바닥 공사>
B57: 피팅룸 바닥 하지작업 | C57: M-BAR | D57: M2 | E57: =E58 -> 3 | F57: 1 | H57: =E57*F57*G57 -> 0 | J57: =I57*E57 -> 0 | L57: =K57*E57 -> 0 | N57: =SUM(J57,H57) -> 0
B58: 피팅룸 바닥 합판 취부 | C58: 15T합판 2PY | D58: M2 | E58: =3 -> 3 | F58: 1 | H58: =E58*F58*G58 -> 0 | J58: =I58*E58 -> 0 | L58: 0 | N58: =SUM(J58,H58) -> 0
B60: 합 계 | H60: =SUM(H50:H59) -> 0 | J60: =SUM(J50:J59) -> 0 | N60: =SUM(N50:N59) -> 0
A62: 3 | B62: 금속공사
B63: <벽체 공사>
B64: 피팅룸 재료분리 | C64: 골드 STS | D64: M | E64: =1.71+0.2+0.2+0.84 -> 2.95 | F64: 1 | H64: =E64*F64*G64 -> 0 | J64: =I64*E64 -> 0 | L64: =K64*E64 -> 0 | N64: =SUM(J64,H64) -> 0
B65: 인건비 | C65: 금속공 | D65: 인 | E65: 1 | F65: 1 | H65: =E65*F65*G65 -> 0 | J65: =I65*E65 -> 0 | L65: 0 | N65: =SUM(J65,H65) -> 0
B67: 합 계 | H67: =SUM(H64:H66) -> 0 | J67: =SUM(J64:J66) -> 0 | N67: =SUM(N64:N66) -> 0
A69: 4 | B69: 유리공사
B70: 피팅룸 은경도어 | C70: 5T은경 하드웨어 포함 | D70: 개소 | E70: 1 | F70: 1 | H70: =E70*F70*G70 -> 0 | J70: =I70*E70 -> 0 | L70: =K70*E70 -> 0 | N70: =SUM(J70,H70) -> 0
B71: 디자인 은경 | C71: 5T은경 | D71: 개소 | E71: 2 | F71: 1 | H71: =E71*F71*G71 -> 0 | J71: =I71*E71 -> 0 | L71: 0 | N71: =SUM(J71,H71) -> 0
B72: 화장대 은경 | C72: 5T은경 | D72: 개소 | E72: 1 | F72: 1 | H72: =E72*F72*G72 -> 0 | J72: =I72*E72 -> 0 | L72: 0 | N72: =SUM(J72,H72) -> 0
B73: 시공 인건비(마감 실리콘 포함) | C73: 유리공 | D73: 인 | E73: 2 | F73: 1 | H73: =E73*F73*G73 -> 0 | J73: =I73*E73 -> 0 | L73: 0 | N73: =SUM(J73,H73) -> 0
B75: 합 계 | H75: =SUM(H70:H74) -> 0 | J75: =SUM(J70:J74) -> 0 | N75: =SUM(N70:N74) -> 0
A77: 5 | B77: 도장공사
B78: PUTTY | C78: 줄퍼티 2회, 올퍼니 1회 | D78: M2 | E78: =E51 -> 39.234 | F78: 1 | H78: =E78*F78*G78 -> 0 | J78: =I78*E78 -> 0 | L78: =K78*E78 -> 0 | N78: =SUM(J78,H78) -> 0
B79: 벽체 도장 작업 | C79: 지정 수성 도장 | D79: M2 | E79: =E78 -> 39.234 | F79: 1 | H79: =E79*F79*G79 -> 0 | J79: =I79*E79 -> 0 | L79: 0 | N79: =SUM(J79,H79) -> 0
B80: 템바보드 도장 | C80: 지정 수성 도장 | D80: M2 | E80: =E52 -> 7.67 | F80: 1 | H80: =E80*F80*G80 -> 0 | J80: =I80*E80 -> 0 | L80: 0 | N80: =SUM(J80,H80) -> 0
B81: 걸레받이 도장 | D81: M | E81: =E53 -> 11.96 | F81: 1 | H81: =E81*F81*G81 -> 0 | J81: =I81*E81 -> 0 | L81: 0 | N81: =SUM(J81,H81) -> 0
B83: 합 계 | H83: =SUM(H78:H82) -> 0 | J83: =SUM(J78:J82) -> 0 | N83: =SUM(N78:N82) -> 0
A85: 6 | B85: 수장 공사
B86: <바닥 공사>
B87: P-TILE | D87: M2 | E87: 24.3 | F87: 1 | H87: =E87*F87*G87 -> 0 | J87: =I87*E87 -> 0 | L87: =K87*E87 -> 0 | N87: =SUM(J87,H87) -> 0
B88: 재료분리대 | D88: M | E88: 2 | F88: 1 | H88: =E88*F88*G88 -> 0 | J88: =I88*E88 -> 0 | L88: 0 | N88: =SUM(J88,H88) -> 0
B89: 잡자재비 | D89: M2 | E89: 24.3 | F89: 1 | H89: =E89*F89*G89 -> 0 | J89: =I89*E89 -> 0 | L89: 0 | N89: =SUM(J89,H89) -> 0
B91: 합 계 | H91: =SUM(H86:H90) -> 0 | J91: =SUM(J87:J90) -> 0 | N91: =SUM(N87:N90) -> 0
A93: 7 | B93: 가구 공사
B94: 붙박이 옷장 | C94: 옷장+신발장 | D94: 자 | E94: =17 -> 17 | F94: 1 | H94: =E94*F94*G94 -> 0 | J94: =I94*E94 -> 0 | L94: =K94*E94 -> 0 | N94: =SUM(J94,H94) -> 0
B95: 화장대 | C95: 목대 위 도장 | D95: 조 | E95: 1 | F95: 1 | H95: =E95*F95*G95 -> 0 | J95: =I95*E95 -> 0 | L95: 0 | N95: =SUM(J95,H95) -> 0
B96: 피팅룸 선반 | C96: 목대 위 필름 | D96: 조 | E96: 1 | F96: 1 | H96: =E96*F96*G96 -> 0 | J96: =I96*E96 -> 0 | L96: 0 | N96: =SUM(J96,H96) -> 0
B97: 운반비 | C97: 1톤 | D97: 차 | E97: 1 | F97: 1 | H97: =E97*F97*G97 -> 0 | J97: =I97*E97 -> 0 | L97: 0 | N97: =SUM(J97,H97) -> 0
B98: 인건비 | C98: 건축목공 | D98: 인 | E98: 2 | F98: 1 | H98: =E98*F98*G98 -> 0 | J98: =I98*E98 -> 0 | L98: 0 | N98: =SUM(J98,H98) -> 0
B100: 합 계 | H100: =SUM(H94:H96) -> 0 | J100: =SUM(J94:J96) -> 0 | N100: =SUM(N94:N96) -> 0
A102: 8 | B102: 철거 공사
B103: 바닥 전체 철거(데코타일) | D103: M2 | E103: 24.3 | F103: 1 | H103: =E103*F103*G103 -> 0 | J103: =I103*E103 -> 0 | L103: =K103*E103 -> 0 | N103: =SUM(J103,H103) -> 0
B104: 집기 철거 | D104: 식 | E104: 24.3 | F104: 1 | H104: =E104*F104*G104 -> 0 | J104: =I104*E104 -> 0 | L104: 0 | N104: =SUM(J104,H104) -> 0
B105: 폐기물처리(혼합) | C105: 1 TON | D105: 대 | E105: 1 | F105: 1 | H105: =E105*F105*G105 -> 0 | J105: =I105*E105 -> 0 | L105: 0 | N105: =SUM(J105,H105) -> 0
B107: 합 계 | H107: =SUM(H103:H105) -> 0 | J107: =SUM(J103:J105) -> 0 | N107: =SUM(N103:N105) -> 0
A109: 9 | B109: 사인 공사
B110: <사인공사>
B111: 내부 로고 | C111: 아크릴스카시 | D111: 조 | E111: 1 | F111: 1 | H111: =G111*F111*E111 -> 0 | J111: =I111*$E111 -> 0 | L111: =K111*E111 -> 0 | N111: =SUM(J111,H111) -> 0
B113: 합 계 | H113: =SUM(H111:H112) -> 0 | J113: =SUM(J110:J112) -> 0 | N113: =SUM(N109:N112) -> 0
